bitfinex/quotes_ETHUSD_20251214
["timestamp","ask_amount","ask_price","bid_price","bid_amount"]
[1765737141973,0.001,3092.6,3092.5,19.6344498]
[1765737142771,0.001,3092.6,3092.5,6.1977548]
[1765737142987,0.001,3092.6,3092.5,19.6344498]
[1765737144400,0.001,3092.6,3092.5,19.15393282]
[1765737144589,0.001,3092.6,3092.5,10.34980503]
[1765737144925,0.001,3092.6,3092.5,20.29680503]
[1765737145072,0.001,3092.6,3092.5,28.70450003]
[1765737145263,0.001,3092.6,3092.5,18.70450003]
[1765737145486,0.001,3092.6,3092.5,22.37178821]
[1765737145689,0.001,3092.6,3092.5,22.49668192]
[1765737145895,0.001,3092.6,3092.5,15.06498692]
[1765737147600,0.001,3092.6,3092.5,11.39769874]
[1765737151601,0.001,3092.6,3092.5,8.30669874]
[1765737151898,0.001,3092.6,3092.5,4.29940503]
[1765737152099,0.8026,3092.6,3092.5,4.32810503]
[1765737152286,0.001,3092.6,3092.5,4.79120503]
[1765737154381,0.001,3092.6,3092.5,5.26030503]
[1765737154581,0.334,3092.6,3092.5,4.32810503]
[1765737155105,0.001,3092.6,3092.5,4.79120503]
[1765737157092,0.001,3092.6,3092.5,4.32810503]
[1765737157297,0.334,3092.6,3092.5,4.32810503]
[1765737158892,0.8026,3092.6,3092.5,4.32810503]
[1765737159410,0.001,3092.6,3092.5,4.79120503]
[1765737159992,0.001,3092.6,3092.5,4.32810503]
[1765737162307,0.001,3092.6,3092.5,5.26030503]
[1765737163285,0.001,3092.6,3092.5,4.79120503]
[1765737164808,0.001,3092.6,3092.5,5.26030503]
[1765737169408,0.001,3092.6,3092.5,8.92821823]
[1765737172320,0.001,3092.6,3092.5,8.45911823]
[1765737176735,0.334,3092.6,3092.5,7.99601823]
[1765737177115,0.7894,3092.6,3092.5,4.32810503]
[1765737177838,0.7894,3092.6,3092.5,3.81610503]
[1765737178012,0.7894,3092.6,3092.5,4.32810503]
[1765737179329,0.7894,3092.6,3092.5,3.81610503]
[1765737179544,0.7894,3092.6,3092.5,4.32810503]
[1765737179839,0.7894,3092.6,3092.5,3.74762974]
[1765737180212,0.7894,3092.6,3092.5,4.32810503]
[1765737185829,0.334,3092.6,3092.5,4.32810503]
[1765737187421,0.7894,3092.6,3092.5,4.32810503]
[1765737188242,0.001,3092.6,3092.5,4.32810503]
[1765737188423,0.001,3092.6,3092.5,4.79080503]
[1765737188625,0.3484,3092.6,3092.5,4.32810503]
[1765737188824,0.8027,3092.6,3092.5,4.32810503]
[1765737195850,0.8027,3092.6,3092.5,3.81610503]
[1765737198351,0.8027,3092.6,3092.5,0.002]
[1765737198548,0.8027,3092.6,3092.5,3.23562974]
[1765737200347,0.001,3092.6,3092.5,4.13422673]
[1765737200586,0.001,3092.6,3092.5,5.12742673]
[1765737201265,0.001,3092.6,3092.5,4.64622673]
[1765737201665,0.001,3092.6,3092.5,0.9767]
[1765737202364,0.001,3092.6,3092.5,4.21032974]
[1765737202567,0.001,3092.6,3092.5,4.69152974]
[1765737203246,0.001,3092.6,3092.5,5.27200503]
[1765737205178,0.001,3092.6,3092.5,5.30434132]
[1765737205480,0.001,3092.6,3092.5,5.27200503]
[1765737206066,0.001,3093.8,3092.7,13.436695]
[1765737206373,0.001,3093.8,3093.4,0.4679]
[1765737206573,0.001,3093.8,3093.4,3.70058895]
[1765737207075,0.3073,3093.5,3093.4,3.23268895]
[1765737208181,0.001,3093.5,3093.4,4.75176424]
[1765737211475,0.001,3093.5,3093.4,4.27006424]
[1765737214283,0.001,3093.5,3093.4,4.75176424]
[1765737216789,0.001,3093.5,3093.4,4.88113055]
[1765737221297,0.001,3093.5,3093.4,8.54683133]
[1765737221598,0.001,3093.5,3093.4,8.54683003]
[1765737235208,0.001,3093.5,3093.4,8.06513003]
[1765737241618,0.001,3093.5,3093.4,4.39943055]
[1765737243719,0.8033,3093.5,3093.4,3.94253055]
[1765737243918,0.8033,3093.5,3093.4,3.36205526]
[1765737244792,0.3542,3093.5,3093.4,7.02775474]
[1765737245013,0.001,3093.5,3093.4,4.80135526]
[1765737246226,0.4601,3093.5,3093.4,3.87305526]
[1765737246395,0.3542,3093.5,3093.4,4.45353055]
[1765737246717,0.001,3093.5,3093.4,4.91343055]
[1765737247892,0.001,3093.5,3093.4,4.45353055]
[1765737248108,0.3552,3093.5,3093.4,8.11923003]
[1765737248922,0.001,3093.5,3093.4,8.11923003]
[1765737249421,0.001,3093.5,3093.4,8.57913003]
[1765737250728,0.001,3093.5,3093.4,9.44709043]
[1765737250924,0.001,3093.5,3093.4,9.04753003]
[1765737254396,0.001,3093.5,3093.4,12.88753003]
[1765737257249,0.001,3093.5,3093.4,12.88741488]
[1765737257746,0.001,3093.5,3093.4,12.41901488]
[1765737258052,0.001,3093.5,3093.4,12.88741488]
[1765737260217,0.4601,3093.5,3093.4,8.29353055]
[1765737260416,0.001,3093.5,3093.4,8.75343055]
[1765737261313,0.8033,3093.5,3093.4,8.29353055]
[1765737261519,0.3542,3093.5,3093.4,8.29353055]
[1765737261722,0.001,3093.5,3093.4,8.29353055]
[1765737261919,0.001,3093.5,3093.4,8.75343055]
[1765737262249,0.001,3093.5,3093.4,9.22183055]
[1765737264678,0.001,3094.8,3093.8,0.4599]
[1765737264820,0.001,3094.7,3094.6,3.66558433]
[1765737265163,0.8272,3094.7,3094.6,4.75705962]
[1765737265643,0.8272,3094.7,3094.6,5.20815962]
[1765737265947,0.001,3094.7,3094.6,5.66805962]
[1765737266140,0.4601,3094.7,3094.6,5.20815962]
[1765737266530,0.8281,3094.7,3094.6,5.20815962]
[1765737267236,0.001,3094.8,3094.7,0.58047529]
[1765737267428,0.001,3094.8,3094.7,15.28227529]
[1765737267846,0.001,3094.8,3094.7,15.92997529]
[1765737268051,0.357,3094.8,3094.7,1.22817529]
[1765737268350,0.357,3094.8,3094.7,1.79635192]
[1765737268947,0.357,3094.8,3094.7,1.22817529]
[1765737269251,0.001,3094.8,3094.7,5.42500627]
[1765737269551,0.357,3094.8,3094.7,4.97050627]
[1765737270246,0.357,3094.8,3094.7,8.81050627]
[1765737270556,0.357,3094.8,3094.7,9.71730627]
[1765737270557,0.001,3094.8,3094.7,9.71730627]
[1765737271552,0.001,3095.1,3094.7,9.71730627]
[1765737271553,0.001,3095.1,3094.9,0.58047529]
[1765737271717,0.001,3095.1,3095.0,8.36614395]
[1765737272049,0.001,3095.1,3095.0,8.81844395]
[1765737272223,0.001,3095.1,3095.0,9.28404395]
[1765737273519,0.001,3095.1,3095.0,12.51506172]
[1765737276131,0.4967,3095.1,3095.0,7.94267739]
[1765737276336,0.8057,3095.1,3095.0,7.94267739]
[1765737277232,0.4967,3095.1,3095.0,7.94267739]
[1765737277432,0.8057,3095.1,3095.0,7.94267739]
[1765737277759,0.8057,3095.1,3095.0,7.47707739]
[1765737281128,0.8057,3095.1,3095.0,11.31707739]
[1765737281325,0.8057,3095.1,3095.0,7.65149306]
[1765737281529,0.8057,3095.1,3095.0,11.31421397]
[1765737282445,0.8057,3095.1,3095.0,7.47421397]
[1765737289340,0.001,3095.1,3095.0,15.85205251]
[1765737289566,0.001,3095.1,3095.0,16.30435251]
[1765737290739,0.4967,3095.1,3095.0,14.97693488]
[1765737290944,0.001,3095.1,3095.0,14.97693488]
[1765737291154,0.001,3095.1,3095.0,15.43143488]
[1765737291470,0.001,3095.1,3095.0,11.76871397]
[1765737292270,0.001,3095.1,3095.0,15.43143488]
[1765737292440,0.001,3095.1,3095.0,15.88373488]
[1765737292641,0.001,3095.1,3095.0,15.88220564]
[1765737297393,0.001,3095.1,3095.0,15.42990564]
[1765737297688,0.001,3095.1,3095.0,15.92670564]
[1765737301786,0.001,3095.1,3095.0,16.11780564]
[1765737304300,0.1911,3096.0,3095.2,13.436695]
[1765737304477,0.1911,3096.0,3095.1,0.58047529]
[1765737304478,0.001,3096.0,3095.9,8.36098787]
[1765737304660,0.001,3096.0,3095.9,8.87198787]
[1765737304862,0.001,3096.0,3095.9,9.36878787]
[1765737305062,0.001,3096.0,3095.9,12.59886636]
[1765737306359,0.8042,3096.0,3095.9,3.81055378]
[1765737306559,0.8042,3096.0,3095.9,7.47251007]
[1765737307589,0.001,3096.0,3095.9,11.59106636]
[1765737307962,0.001,3096.0,3095.9,7.92911007]
[1765737308162,0.001,3096.0,3095.9,7.47251007]
[1765737309189,0.3344,3096.0,3095.9,7.47251007]
[1765737309485,0.8042,3096.0,3095.9,7.47251007]
[1765737312290,0.8042,3096.0,3095.9,3.81055378]
[1765737312591,0.8042,3096.0,3095.9,7.47251007]
[1765737313093,0.8042,3096.0,3095.0,0.002]
[1765737313392,0.6659,3095.9,3095.4,6.46120048]
[1765737313761,0.3334,3095.5,3095.4,3.23060024]
[1765737313994,3.56391097,3095.5,3095.0,0.002]
[1765737314197,0.4547,3095.1,3095.0,0.002]
[1765737314680,0.8044,3095.1,3095.0,0.002]
[1765737317295,4.03531337,3095.1,3095.0,0.002]
[1765737317467,4.1263392,3095.1,3095.0,0.002]
[1765737319206,0.8044,3095.1,3095.0,0.002]
[1765737320390,1.25901071,3095.1,3095.0,0.002]
[1765737322406,4.48992408,3095.1,3095.0,0.002]
[1765737335191,4.49092408,3095.1,3095.0,0.002]
[1765737339027,4.53127828,3095.1,3095.0,0.002]
[1765737340286,4.49092408,3095.1,3095.0,0.002]
[1765737347222,5.11175357,3095.1,3095.0,0.002]
[1765737347410,5.07139937,3095.1,3095.0,0.002]
[1765737353796,5.11175357,3095.1,3095.0,0.002]
[1765737355313,5.07139937,3095.1,3095.0,0.002]
[1765737355509,5.11175357,3095.1,3095.0,0.002]
[1765737356224,5.07139937,3095.1,3095.0,0.002]
[1765737372251,12.85040865,3095.1,3095.0,0.002]
[1765737372428,0.98597929,3095.0,3094.8,0.002]
[1765737372746,3.9346282,3094.9,3094.8,0.002]
[1765737373153,4.06403385,3094.9,3094.8,0.002]
[1765737373571,2.41257565,3094.9,3094.8,0.002]
[1765737373869,1.44512949,3094.9,3094.8,0.002]
[1765737374252,5.12849745,3094.9,3094.8,0.002]
[1765737374986,5.32519745,3094.9,3094.8,0.002]
[1765737376283,5.73070145,3094.9,3094.8,0.002]
[1765737378358,5.73070145,3094.9,3094.8,0.00037849]
[1765737378558,7.48512711,3094.9,3094.8,0.00037849]
[1765737383374,7.95142711,3094.9,3094.8,0.00037849]
[1765737384364,0.98597929,3094.8,3094.0,0.4663]
[1765737384565,0.09102583,3094.1,3094.0,0.4663]
[1765737384880,0.5513542,3094.1,3094.0,0.4663]
[1765737385167,0.5513542,3094.1,3094.0,0.4552]
[1765737385372,3.78331179,3094.1,3094.0,0.9215]
[1765737386872,3.78331179,3094.1,3094.0,0.9235]
[1765737387236,3.74295759,3094.1,3094.0,0.9235]
[1765737389032,3.74295759,3094.1,3094.0,0.002]
[1765737389033,4.90877654,3094.1,3094.0,0.002]
[1765737389237,4.90877654,3094.1,3094.0,0.4552]
[1765737389238,4.45357654,3094.1,3094.0,0.4552]
[1765737390987,4.90877654,3094.1,3094.0,0.002]
[1765737391278,5.26087654,3094.1,3094.0,0.002]
[1765737391777,5.30123074,3094.1,3094.0,0.002]
[1765737392484,4.94913074,3094.1,3094.0,0.002]
[1765737393601,0.001,3094.9,3094.0,4.58197554]
[1765737393745,0.001,3094.9,3094.8,0.4306]
[1765737394266,0.001,3094.9,3094.8,0.8612]
[1765737398371,0.512,3094.9,3094.8,0.8612]
[1765737398869,3.74312216,3094.9,3094.8,0.8612]
[1765737399380,3.23212216,3094.9,3094.8,0.8612]
[1765737399675,3.74312216,3094.9,3094.8,0.8612]
[1765737399848,0.001,3094.9,3094.8,0.8612]
[1765737400168,0.512,3094.9,3094.8,0.8612]
[1765737400368,0.001,3094.9,3094.8,0.8612]
[1765737400677,0.512,3094.9,3094.8,0.8612]
[1765737401551,0.001,3094.9,3094.8,4.67290186]
[1765737401857,0.001,3095.1,3094.9,0.58047529]
[1765737402048,0.001,3095.1,3094.8,8.33683883]
[1765737402049,0.001,3095.1,3095.0,5.10523176]
[1765737403959,0.001,3095.1,3095.0,8.33624953]
[1765737404875,0.001,3095.1,3095.0,4.67069306]
[1765737405082,0.001,3095.1,3095.0,8.33624953]
[1765737405381,0.001,3095.1,3095.0,8.33342316]
[1765737410468,0.001,3095.1,3095.0,11.99615326]
[1765737411396,0.001,3095.1,3095.0,8.33342316]
[1765737411571,0.001,3095.1,3095.0,11.99615326]
[1765737416492,0.001,3095.1,3095.0,11.56655326]
[1765737416697,0.001,3095.1,3095.0,11.99615326]
[1765737418487,0.001,3095.1,3095.0,8.33342316]
[1765737421303,0.001,3095.1,3095.0,3.66061777]
[1765737421462,0.001,3095.1,3095.0,4.09061777]
[1765737421890,0.001,3095.1,3095.0,4.67109306]
[1765737424076,0.4513,3095.1,3095.0,3.81149306]
[1765737424387,0.4513,3095.1,3093.7,3.2342879]
[1765737424388,1.4615,3095.1,3094.2,0.58047529]
[1765737424588,0.4148,3094.9,3094.4,4.24320539]
[1765737425829,0.4148,3094.9,3094.6,0.58047529]
[1765737426699,0.09102583,3095.6,3094.6,0.58047529]
[1765737426700,0.001,3096.0,3095.0,0.4288]
[1765737426995,0.001,3096.0,3095.9,4.67200539]
[1765737429800,0.001,3096.0,3095.9,7.90208388]
[1765737429999,0.001,3096.0,3095.9,12.50369452]
[1765737432691,0.001,3096.0,3095.9,8.84096442]
[1765737433324,0.001,3096.0,3095.9,12.07489452]
[1765737433672,0.001,3096.0,3095.9,12.50369452]
[1765737435014,0.4513,3096.0,3095.9,0.58047529]
[1765737435217,0.9505,3096.0,3095.9,3.81055378]
[1765737435508,0.9505,3096.0,3095.4,6.8931176]
[1765737435710,0.4297,3095.6,3095.4,6.8931176]
[1765737436312,0.4501,3095.5,3095.4,6.8931176]
[1765737438400,0.4992,3095.8,3095.4,6.8931176]
[1765737438604,0.4503,3095.5,3095.4,3.66256134]
[1765737439482,0.4503,3095.5,3095.4,6.89312901]
[1765737439683,0.4503,3095.5,3095.4,3.66256134]
[1765737441480,0.4513,3095.5,3095.4,3.66256134]
[1765737441880,0.001,3095.5,3095.4,3.66256134]
[1765737442301,0.4513,3095.5,3095.4,3.66256134]
[1765737443198,0.4513,3095.5,3095.1,3.23089991]
[1765737443407,0.4513,3095.5,3095.2,3.66256134]
[1765737446128,0.4513,3095.5,3095.3,3.23070461]
[1765737446484,0.001,3095.5,3095.0,0.58047529]
[1765737446724,0.4899,3095.4,3095.2,3.23079938]
[1765737446921,0.4899,3095.4,3095.2,6.89336072]
[1765737447088,0.001,3095.5,3095.2,3.23079938]
[1765737448226,0.001,3095.5,3095.4,4.09136134]
[1765737450524,0.001,3095.5,3095.4,0.4288]
[1765737451328,0.9514,3095.5,3095.2,3.2307992]
[1765737451619,0.001,3095.5,3095.4,0.4288]
[1765737453895,0.4615,3095.5,3095.3,3.66256134]
[1765737455848,0.001,3095.5,3095.4,0.4288]
[1765737456124,0.4605,3095.4,3095.2,3.23076415]
[1765737456815,0.001,3095.5,3095.3,0.4288]
[1765737457206,0.001,3095.5,3095.3,3.65948823]
[1765737457408,0.001,3095.5,3095.3,3.23068823]
[1765737458029,0.001,3095.5,3095.4,0.4288]
[1765737459733,0.001,3095.5,3095.2,3.23080899]
[1765737464207,0.4909,3095.5,3095.2,3.23080899]
[1765737464500,0.001,3095.5,3095.2,3.23080899]
[1765737464907,0.001,3095.5,3095.4,0.4288]
[1765737466431,0.4615,3095.5,3095.2,3.23080899]
[1765737466630,0.9514,3095.5,3095.2,3.23080899]
[1765737468057,0.4605,3095.3,3095.0,0.002]
[1765737468374,0.001,3095.5,3095.0,0.002]
[1765737468375,0.4605,3095.1,3095.0,0.002]
[1765737468640,0.4605,3095.1,3093.7,3.23428162]
[1765737468641,0.6564,3094.6,3093.7,0.002]
[1765737468841,0.4567,3094.1,3093.7,0.002]
[1765737469141,0.9466,3094.1,3093.7,0.002]
[1765737469743,0.4899,3094.3,3093.7,0.002]
[1765737470044,0.1981,3094.6,3094.0,0.4368]
[1765737470240,0.1981,3094.6,3094.2,0.4348]
[1765737471039,0.4605,3094.3,3094.0,3.23402236]
[1765737471222,0.4605,3094.3,3094.0,0.002]
[1765737471731,1.1310288,3094.6,3094.0,3.23404611]
[1765737472038,1.1310288,3094.6,3094.0,3.23403763]
[1765737472213,4.36248284,3094.6,3094.0,3.23403763]
[1765737473143,4.36248284,3094.6,3094.1,0.002]
[1765737473516,0.4899,3094.5,3094.1,0.002]
[1765737474844,0.4605,3094.2,3094.1,0.002]
[1765737477447,0.48734828,3094.5,3094.1,0.4368]
[1765737477648,0.94864828,3094.5,3094.1,0.4368]
[1765737479452,0.4613,3094.4,3094.1,0.4368]
[1765737479971,0.4613,3094.4,3094.1,0.4268]
[1765737480171,0.4533,3094.2,3094.0,0.002]
[1765737480344,0.4451,3094.1,3094.0,0.002]
[1765737480748,0.9064,3094.1,3094.0,0.002]
[1765737483347,3.23250027,3094.6,3094.0,0.8556]
[1765737483543,0.511,3094.5,3094.0,0.002]
[1765737483877,0.9723,3094.5,3094.0,0.002]
[1765737484476,0.001,3094.6,3094.4,0.4268]
[1765737484680,0.511,3094.5,3094.1,0.1325]
[1765737484883,0.511,3094.5,3094.2,6.89050628]
[1765737485183,0.511,3094.5,3094.4,0.4268]
[1765737485350,0.511,3094.5,3094.2,6.46370628]
[1765737485550,0.511,3094.5,3094.4,0.4268]
[1765737486499,0.001,3094.6,3094.4,0.8536]
[1765737486654,0.001,3094.6,3094.5,0.4268]
[1765737486859,0.001,3094.6,3094.5,3.65833982]
[1765737487189,0.001,3094.6,3094.5,4.08513982]
[1765737487892,0.001,3094.6,3094.5,3.65833982]
[1765737488189,0.001,3094.6,3094.5,4.81681865]
[1765737488691,0.4543,3094.6,3094.5,3.23153982]
[1765737488882,0.9156,3094.6,3094.2,6.46370628]
[1765737489083,0.446,3094.4,3094.2,6.46370628]
[1765737489883,0.001,3094.6,3094.2,6.46370628]
[1765737490196,0.4623,3094.6,3094.2,6.46370628]
[1765737490687,0.4533,3094.3,3094.1,3.23393985]
[1765737490886,0.4623,3094.6,3094.1,3.23393985]
[1765737490887,0.446,3094.2,3094.1,0.002]
[1765737495792,0.001,3094.6,3094.1,0.4288]
[1765737496113,0.4623,3094.5,3094.2,3.23185314]
[1765737496525,0.4533,3094.3,3094.2,3.23185314]
[1765737497918,0.4533,3094.3,3094.1,0.002]
[1765737500426,0.4623,3094.5,3094.1,0.002]
[1765737501207,0.001,3094.5,3094.4,0.4268]
[1765737501427,0.001,3094.5,3094.1,0.1345]
[1765737501809,0.001,3094.5,3094.1,0.5613]
[1765737504445,0.4533,3094.2,3094.1,3.23395759]
[1765737504750,0.4533,3094.2,3094.1,0.002]
[1765737504944,0.9146,3094.2,3094.1,0.002]
[1765737510131,1.43913129,3094.2,3094.1,0.002]
[1765737510861,1.89323129,3094.2,3094.1,0.002]
[1765737513239,0.001,3094.5,3094.1,0.9881]
[1765737513438,0.001,3094.5,3094.4,0.4268]
[1765737513848,0.001,3094.5,3094.4,0.8536]
[1765737514447,0.001,3094.5,3094.4,0.4268]
[1765737514760,0.001,3094.5,3094.4,0.8536]
[1765737515554,0.001,3094.5,3094.4,4.08524426]
[1765737517041,0.001,3094.5,3094.4,3.65844426]
[1765737518179,0.001,3094.5,3094.4,9.57567463]
[1765737519255,0.001,3094.5,3094.4,23.01236963]
[1765737520170,0.001,3094.5,3094.4,23.14169411]
[1765737521290,0.001,3094.6,3094.4,23.14169411]
[1765737521446,0.001,3095.5,3094.4,23.14169411]
[1765737521447,0.001,3095.5,3095.4,4.24773084]
[1765737521771,0.001,3095.5,3095.4,19.40093233]
[1765737522078,0.001,3095.5,3095.4,19.95701502]
[1765737522273,0.001,3095.5,3095.4,19.60308161]
[1765737522659,0.001,3095.5,3095.4,22.83368185]
[1765737523768,0.001,3095.8,3095.5,0.58047529]
[1765737523969,0.001,3095.8,3095.7,4.67453084]
[1765737524382,0.001,3095.8,3095.7,5.10133084]
[1765737526178,0.001,3095.8,3095.7,8.33161801]
[1765737527380,0.001,3095.8,3095.7,11.98387062]
[1765737528673,0.001,3095.8,3095.7,12.11315331]
[1765737528873,0.001,3095.8,3095.7,9.18509876]
[1765737529701,0.001,3095.8,3095.7,8.75829876]
[1765737530387,0.001,3095.8,3095.7,9.18509876]
[1765737533501,0.001,3095.8,3095.7,8.75829876]
[1765737533876,0.001,3095.8,3095.7,9.18509876]
[1765737534774,0.001,3095.8,3095.7,8.75829876]
[1765737539722,0.4793,3095.8,3095.7,7.47051654]
[1765737539923,0.4793,3095.8,3095.7,7.89731654]
[1765737539924,0.001,3095.8,3095.7,7.89731654]
[1765737540110,0.001,3095.8,3095.7,8.32411654]
[1765737542304,0.001,3095.8,3095.7,8.32473731]
[1765737542904,0.001,3095.8,3095.7,7.89793731]
[1765737544841,0.001,3095.8,3095.7,8.32473731]
[1765737549043,0.4793,3095.8,3095.7,3.81076246]
[1765737549213,0.001,3095.8,3095.7,4.23756246]
[1765737549743,0.001,3095.8,3095.7,4.66436246]
[1765737552351,0.001,3095.8,3095.7,4.23756246]
[1765737552752,0.9713,3095.8,3095.7,3.23028717]
[1765737554070,0.9713,3095.8,3095.5,0.002]
[1765737554238,0.3795,3095.6,3095.5,0.002]
[1765737554743,0.8715,3095.6,3095.5,0.002]
[1765737556767,0.001,3095.8,3095.5,3.66237485]
[1765737556950,0.4783,3095.6,3095.5,3.66237485]
[1765737558466,0.9703,3095.6,3095.5,6.89287073]
[1765737565081,0.001,3095.8,3095.6,0.58047529]
[1765737565378,0.001,3095.8,3095.7,4.74856246]
[1765737565967,0.001,3095.8,3095.7,5.17536246]
[1765737566468,0.001,3095.8,3095.7,22.30473518]
[1765737566671,0.001,3095.8,3095.7,22.27243231]
[1765737566870,0.001,3095.8,3095.7,22.84906737]
[1765737567293,0.001,3095.8,3095.7,22.97833627]
[1765737569688,0.001,3095.9,3095.8,24.01717029]
[1765737569888,0.001,3095.9,3095.8,18.53114514]
[1765737570183,0.001,3095.9,3095.8,19.54350267]
[1765737570894,0.001,3095.9,3095.8,15.45632782]
[1765737571178,0.001,3095.9,3095.8,6.19100767]
[1765737571380,0.001,3095.9,3095.8,9.42119049]
[1765737571560,0.001,3095.9,3095.8,9.84799049]
[1765737572774,0.001,3095.9,3095.8,13.50836534]
[1765737573279,0.001,3095.9,3095.8,9.84799049]
[1765737573598,0.001,3095.9,3095.8,13.50836534]
[1765737575283,0.001,3095.9,3095.8,26.94506034]
[1765737576056,0.001,3096.0,3095.8,13.63761377]
[1765737576282,0.001,3096.0,3095.9,1.43023506]
[1765737576580,0.001,3096.0,3095.9,1.55948349]
[1765737576891,0.001,3096.0,3095.9,18.80673227]
[1765737578513,0.001,3096.0,3095.9,26.12382387]
[1765737581013,0.001,3096.0,3095.9,29.96382387]
[1765737581810,0.001,3096.1,3095.9,29.96382387]
[1765737581811,0.001,3096.1,3096.0,0.58047529]
[1765737582012,0.001,3096.1,3096.0,15.88312782]
[1765737582488,0.001,3096.1,3096.0,16.01237625]
[1765737583016,0.001,3096.2,3096.1,14.01717029]
[1765737583316,0.001,3096.2,3096.1,15.01797029]
[1765737584303,0.001,3096.2,3096.1,18.85797029]
[1765737584629,0.1821,3097.2,3096.5,0.58047529]
[1765737584630,0.649,3097.2,3096.5,0.58047529]
[1765737584801,0.1821,3097.2,3097.0,6.88747702]
[1765737585114,0.4823,3097.1,3097.0,6.88747702]
[1765737585308,0.9492,3097.1,3097.0,6.88747702]
[1765737585620,0.9492,3097.1,3096.7,0.1821]
[1765737585787,0.676,3096.8,3096.7,3.22916506]
[1765737585988,0.4669,3097.0,3096.8,0.58047529]
[1765737586292,0.4813,3096.9,3096.8,0.58047529]
[1765737586491,0.4813,3096.9,3096.8,4.23902109]
[1765737587014,0.4813,3096.9,3096.8,7.46816084]
[1765737587316,0.4813,3096.9,3096.8,3.80961504]
[1765737587703,0.9482,3096.9,3096.8,3.80961504]
[1765737588019,0.001,3097.1,3096.8,12.24493318]
[1765737588188,0.001,3097.1,3096.8,13.19313318]
[1765737588383,0.001,3097.1,3097.0,0.4268]
[1765737588589,0.001,3097.1,3097.0,0.9378]
[1765737588988,0.001,3097.1,3097.0,4.74720651]
[1765737589227,0.001,3097.1,3097.0,6.44127506]
[1765737589403,0.001,3097.1,3097.0,10.09756288]
[1765737590398,0.001,3097.3,3097.2,13.436695]
[1765737590720,0.001,3097.3,3097.2,14.44397029]
[1765737590920,0.001,3097.3,3097.2,14.87077029]
[1765737591211,0.001,3097.3,3097.2,19.22032559]
[1765737592096,0.001,3097.3,3097.2,19.68722559]
[1765737592507,0.001,3097.3,3097.2,19.26042559]
[1765737593597,0.001,3097.3,3097.2,4.8164553]
[1765737593598,0.4823,3097.3,3097.2,4.8164553]
[1765737593908,0.9492,3097.3,3097.2,7.97648582]
[1765737594091,0.001,3097.3,3097.2,8.40328582]
[1765737594296,0.001,3097.3,3097.2,22.26678082]
[1765737594609,0.001,3097.3,3097.2,23.06588937]
[1765737595313,0.001,3097.3,3097.2,9.62919437]
[1765737595514,0.001,3097.3,3097.2,9.20239437]
[1765737595709,0.001,3097.3,3097.2,8.40328582]
[1765737596219,0.001,3097.3,3097.2,8.87018582]
[1765737599440,0.492,3097.3,3097.2,8.44338582]
[1765737600142,0.001,3097.3,3097.2,9.66929437]
[1765737600436,0.001,3097.3,3097.2,9.24995256]
[1765737600611,0.001,3097.3,3097.2,8.87018582]
[1765737601546,0.001,3097.3,3097.2,9.29698582]
[1765737601840,0.001,3097.3,3097.2,8.87018582]
[1765737604717,0.492,3097.3,3097.2,8.44338582]
[1765737605043,0.9849,3097.3,3097.2,4.276098]
[1765737605340,0.9849,3097.3,3097.2,4.787098]
[1765737605520,0.9849,3097.3,3097.2,3.22872271]
[1765737605718,0.9849,3097.3,3097.0,6.45986244]
[1765737605918,0.3538,3097.1,3097.0,3.81140651]
[1765737606545,0.8467,3097.1,3097.0,3.23093122]
[1765737606944,0.8467,3097.1,3097.0,3.81140651]
[1765737617486,0.8477,3097.1,3097.0,3.81140651]
[1765737618958,0.8477,3097.1,3097.0,3.23093122]
[1765737619171,0.8477,3097.1,3097.0,3.81140651]
[1765737621490,11.04518088,3097.1,3095.9,0.002]
[1765737621688,2.18959591,3097.0,3096.0,3.22996334]
[1765737622088,0.6749,3096.1,3096.0,3.22996334]
[1765737622523,0.6749,3096.1,3095.9,0.002]
[1765737622796,0.8552,3096.0,3095.9,3.23207849]
[1765737623018,0.8552,3096.0,3095.9,0.002]
[1765737636033,0.1944,3096.6,3095.9,4.08934687]
[1765737636495,0.4685,3096.5,3095.9,4.08934687]
[1765737638418,0.4685,3096.5,3096.0,6.45994832]
[1765737639224,0.4802,3096.1,3096.0,3.22997416]
[1765737640458,0.9487,3096.1,3096.0,3.22997416]
[1765737640737,0.9487,3096.1,3095.9,0.002]
[1765737640946,0.8554,3096.0,3095.9,0.002]
[1765737641958,0.4802,3096.0,3095.9,0.002]
[1765737642560,0.9487,3096.0,3095.9,0.002]
[1765737648020,1.366547,3096.0,3095.9,0.002]
[1765737649042,4.59652116,3096.0,3095.9,0.002]
[1765737649742,1.366547,3096.0,3095.9,0.002]
[1765737652136,1.45757283,3096.0,3095.9,0.002]
[1765737652943,1.366547,3096.0,3095.9,0.002]
[1765737660949,0.886847,3096.0,3095.9,0.002]
[1765737661141,1.867247,3096.0,3095.9,0.002]
[1765737661540,5.09722116,3096.0,3095.9,0.002]
[1765737661848,1.867247,3096.0,3095.9,0.002]
[1765737662417,5.09722116,3096.0,3095.9,0.002]
[1765737663624,1.867247,3096.0,3095.9,0.002]
[1765737663826,1.4494,3096.0,3095.9,0.002]
[1765737665655,4.77039999,3096.0,3095.9,0.002]
[1765737667954,1.54042583,3096.0,3095.9,0.002]
[1765737668569,1.4494,3096.0,3095.9,0.002]
[1765737668930,4.77039999,3096.0,3095.9,0.002]
[1765737669251,5.57043332,3096.0,3095.9,0.002]
[1765737672763,5.01000749,3096.0,3095.9,0.002]